bitfinex/quotes_ETHUSD_20260207
["timestamp","ask_amount","ask_price","bid_price","bid_amount"]
[1770491782427,0.92716365,2094.2,2092.9,0.93827669]
[1770491782611,0.92716365,2093.9,2092.6,0.93827669]
[1770491783010,0.92716365,2094.2,2093.1,0.93827669]
[1770491783536,0.92716365,2094.2,2093.2,3.341]
[1770491784543,0.92716365,2094.2,2092.6,0.93827669]
[1770491784544,0.92716365,2094.0,2092.6,0.93827669]
[1770491784730,0.92716365,2094.0,2093.0,1.19445404]
[1770491784912,0.92716365,2094.0,2093.1,1.19439063]
[1770491785112,0.92716365,2094.0,2093.2,3.34]
[1770491785342,0.92716365,2094.0,2093.2,4.53433858]
[1770491785648,0.92716365,2094.0,2093.2,3.34]
[1770491786138,0.92716365,2094.0,2093.2,4.53430527]
[1770491786816,2.4624173,2094.3,2093.3,0.93827669]
[1770491787136,1.53525365,2094.3,2093.3,0.93827669]
[1770491787441,0.92716365,2094.2,2093.2,4.53430527]
[1770491787641,0.34151045,2094.3,2093.3,0.93827669]
[1770491787817,0.002,2094.4,2093.3,0.93827669]
[1770491788016,0.92716365,2094.3,2093.2,1.19430527]
[1770491788216,0.92716365,2094.3,2093.3,3.34]
[1770491788418,1.19377327,2094.2,2093.2,1.19430527]
[1770491788724,0.92716365,2094.1,2093.3,3.339]
[1770491789124,1.19377327,2094.2,2093.4,0.93827669]
[1770491789524,2.12091993,2094.3,2093.4,0.93827669]
[1770491789941,1.19566187,2094.4,2093.4,0.93827669]
[1770491790142,0.92716365,2094.3,2093.4,0.93827669]
[1770491790355,0.92716365,2094.3,2093.5,3.339]
[1770491790735,2.1209112,2094.3,2093.6,1.19411539]
[1770491791042,2.1209112,2094.3,2093.5,3.339]
[1770491791043,4.77664258,2094.4,2093.5,4.53313031]
[1770491791265,1.19374755,2094.3,2093.5,4.53313031]
[1770491791426,1.19374755,2094.3,2093.5,3.339]
[1770491791632,0.47328967,2094.2,2093.5,3.339]
[1770491791834,0.47328967,2094.2,2093.4,0.93827669]
[1770491792038,0.47328967,2094.2,2093.5,4.5331666]
[1770491792257,1.19374755,2094.3,2093.5,4.5331666]
[1770491792865,0.002,2094.4,2093.5,4.5331666]
[1770491793068,0.002,2094.4,2093.6,1.00000012]
[1770491793224,0.002,2094.4,2093.6,4.33900012]
[1770491794130,0.002,2094.4,2093.4,1.19419624]
[1770491794450,0.02893239,2094.3,2093.5,3.339]
[1770491794947,1.19377327,2094.2,2093.6,3.339]
[1770491795275,0.00081841,2094.1,2093.6,3.339]
[1770491795570,0.00081841,2094.1,2093.2,1.00000012]
[1770491795720,0.00085454,2093.9,2092.4,1.00000012]
[1770491795924,0.00085454,2093.9,2092.5,4.53373481]
[1770491796734,0.00085454,2093.9,2092.6,1.19467526]
[1770491796931,0.00092333,2093.8,2092.1,0.02893239]
[1770491797135,0.00092333,2093.8,2091.8,0.001]
[1770491797136,0.02893239,2093.3,2091.8,0.001]
[1770491797434,0.02893239,2093.2,2092.0,1.00046178]
[1770491797827,0.1024,2093.3,2092.1,0.02893239]
[1770491798040,0.1024,2093.3,2091.8,0.001]
[1770491798242,0.1024,2093.1,2091.8,0.001]
[1770491798432,0.1024,2093.1,2091.3,1.22435763]
[1770491798749,1.06449459,2093.1,2091.3,1.22435763]
[1770491798959,1.19445771,2093.0,2091.3,1.22435763]
[1770491799260,0.96209459,2092.9,2091.3,0.02893239]
[1770491799764,0.96209459,2092.9,2091.4,1.00046178]
[1770491800054,1.19445771,2093.0,2092.0,1.00046178]
[1770491800829,1.19445771,2093.0,2091.9,0.02893239]
[1770491801249,4.77783086,2093.1,2091.8,2.19560471]
[1770491801625,4.77783086,2093.1,2091.2,5.38398755]
[1770491801626,4.77783086,2093.1,2091.5,1.19527834]
[1770491801857,4.77783086,2093.1,2091.6,1.19525522]
[1770491802171,4.77783086,2093.1,2091.5,2.1957379]
[1770491802335,4.80676325,2093.1,2091.5,2.19576445]
[1770491803054,0.1024,2093.0,2091.5,1.00046178]
[1770491803247,1.19451478,2092.9,2091.5,1.00046178]
[1770491803956,0.1024,2092.8,2091.5,1.00046178]
[1770491804260,0.99903781,2092.7,2091.3,1.19538702]
[1770491805323,0.99903781,2092.7,2091.5,0.94221653]
[1770491805324,1.19468603,2092.6,2091.5,0.94221653]
[1770491805528,1.57707239,2092.5,2091.5,0.94221653]
[1770491805949,1.57707239,2092.5,2091.6,0.97114892]
[1770491808123,1.19480022,2092.4,2091.6,1.1952437]
[1770491808339,0.38803538,2092.3,2091.7,0.94221653]
[1770491808522,0.38803538,2092.3,2091.7,0.66181653]
[1770491808728,0.38803538,2092.3,2091.6,0.9148437]
[1770491808957,0.38803538,2092.3,2091.8,0.001]
[1770491810741,1.58291476,2092.3,2091.8,0.001]
[1770491810945,0.33918726,2092.2,2091.8,0.001]
[1770491811837,0.33918726,2092.2,2091.6,0.9148437]
[1770491812448,1.53410866,2092.2,2091.6,0.9148437]
[1770491812650,0.33685681,2092.1,2091.6,0.9148437]
[1770491813546,0.33685681,2092.1,2091.5,1.19630365]
[1770491813869,0.33685681,2092.1,2091.5,1.19631351]
[1770491814068,0.33685681,2092.1,2091.5,0.001]
[1770491814551,1.53183058,2092.1,2091.5,0.001]
[1770491816172,0.33685681,2092.1,2091.6,0.94221653]
[1770491816739,0.33685681,2092.1,2091.5,0.001]
[1770491817284,0.33685681,2092.1,2091.5,0.94321653]
[1770491818653,0.33685681,2092.1,2091.8,2.13735946]
[1770491820580,0.7,2091.9,2091.7,1.195163]
[1770491820749,0.7,2091.9,2091.5,0.94321653]
[1770491821072,2.19343845,2093.1,2091.7,0.94221653]
[1770491821272,0.3382744,2092.5,2091.7,0.94221653]
[1770491821475,0.3382744,2092.5,2091.7,0.94321653]
[1770491821778,0.002,2092.1,2091.7,0.94321653]
[1770491821981,0.002,2092.3,2091.8,0.94221653]
[1770491822652,0.002,2092.3,2091.7,0.001]
[1770491823277,0.002,2092.3,2091.7,1.19620007]
[1770491824563,1.00103781,2092.3,2091.7,0.001]
[1770491825677,2.19592013,2092.3,2091.7,0.001]
[1770491826174,0.002,2092.3,2091.7,0.001]
[1770491827679,0.002,2092.3,2091.9,0.99063324]
[1770491828979,0.002,2092.3,2091.8,1.19514293]
[1770491832079,0.002,2092.3,2091.7,1.19620007]
[1770491832384,0.9654237,2092.3,2091.7,0.001]
[1770491833675,0.7,2092.1,2091.7,0.001]
[1770491834883,0.7,2092.1,2091.9,0.001]
[1770491835385,0.702,2092.1,2091.9,0.001]
[1770491838190,2.86040832,2092.1,2091.9,0.001]
[1770491838489,1.6654237,2092.1,2091.9,0.001]
[1770491838685,0.702,2092.1,2091.9,0.001]
[1770491839804,5.74492616,2092.3,2091.9,0.001]
[1770491839805,0.002,2092.3,2092.0,0.99249926]
[1770491839966,0.3382744,2092.5,2092.1,0.99249926]
[1770491840157,0.3382744,2092.5,2092.2,1.19491444]
[1770491840358,0.3382744,2092.5,2092.2,2.1874137]
[1770491840877,0.3382744,2092.5,2092.0,2.1874868]
[1770491841082,0.3402744,2092.5,2092.1,1.19497025]
[1770491842366,0.3402744,2092.5,2091.9,1.1960858]
[1770491843793,2.49845509,2092.5,2091.9,0.001]
[1770491844092,0.3402744,2092.5,2091.9,0.001]
[1770491844693,0.3402744,2092.5,2091.9,0.99349926]
[1770491844896,0.3402744,2092.5,2091.9,0.001]
[1770491845397,1.5350239,2092.5,2091.9,0.001]
[1770491846789,0.3402744,2092.5,2091.9,0.001]
[1770491847098,0.3402744,2092.5,2091.9,0.99349926]
[1770491847596,0.3402744,2092.5,2091.9,0.001]
[1770491847795,0.3402744,2092.5,2091.9,0.99349926]
[1770491848199,0.3402744,2092.5,2092.1,0.001]
[1770491848390,0.002,2092.3,2092.1,0.001]
[1770491848880,0.004,2092.3,2092.1,0.001]
[1770491850669,1.19428653,2093.3,2092.2,0.99249926]
[1770491850866,1.19440064,2093.1,2092.4,0.99249926]
[1770491851085,1.19440064,2093.1,2092.3,1.19485733]
[1770491851277,0.28384051,2093.0,2092.3,2.18735659]
[1770491851913,0.34327397,2093.1,2092.3,2.18735659]
[1770491852114,0.28384051,2092.9,2092.3,2.18735659]
[1770491852317,0.28384051,2092.9,2092.4,0.99249926]
[1770491854399,0.28384051,2092.9,2092.5,1.19474313]
[1770491858914,0.34327397,2093.1,2092.5,1.19474313]
[1770491859114,0.28384051,2093.0,2092.5,1.19474313]
[1770491859311,0.34327397,2093.1,2092.8,1.01047397]
[1770491859504,0.002,2093.4,2092.8,1.01047397]
[1770491861427,0.002,2093.4,2093.0,1.01047397]
[1770491861611,0.002,2093.4,2092.9,1.19451478]
[1770491862507,0.002,2093.4,2092.9,2.20498875]
[1770491862834,0.002,2093.4,2093.0,1.01047397]
[1770491863238,0.002,2093.4,2092.9,1.18280943]
[1770491863627,0.002,2093.4,2092.7,1.01047397]
[1770491864309,1.06815811,2093.4,2092.5,2.2052171]
[1770491865623,1.06615811,2093.2,2092.3,1.19485733]
[1770491865833,1.19428653,2093.3,2092.4,1.01047397]
[1770491867841,1.19428653,2093.3,2092.5,1.19474313]
[1770491868411,2.26241655,2093.4,2092.5,2.2052171]
[1770491868740,0.002,2093.4,2092.6,1.01047397]
[1770491868939,0.002,2093.4,2092.7,0.03107]
[1770491869234,0.002,2093.4,2092.7,1.04154397]
[1770491869738,0.002,2093.4,2092.8,1.19457186]
[1770491871641,0.002,2093.4,2092.7,1.19458748]
[1770491871831,0.002,2093.4,2092.7,1.01047397]
[1770491872032,0.002,2093.4,2092.7,1.04154397]
[1770491873640,0.002,2093.8,2093.1,1.01047397]
[1770491873839,0.002,2093.8,2093.2,1.19434358]
[1770491875141,0.002,2093.6,2093.2,1.19434358]
[1770491876225,0.002,2093.6,2093.2,1.01047397]
[1770491877628,2.6024596,2094.1,2093.2,1.01047397]
[1770491878647,1.06615811,2094.0,2093.1,1.19440064]
[1770491878943,1.06615811,2094.0,2093.1,2.20487461]
[1770491879560,1.06615811,2094.0,2093.2,1.01047397]
[1770491879918,0.342429,2094.1,2093.2,1.01047397]
[1770491880652,0.002,2094.2,2093.4,1.04154397]
[1770491881023,2.26172746,2094.6,2093.5,1.01047397]
[1770491881648,0.002,2094.6,2093.7,0.03107]
[1770491881825,0.002,2094.6,2093.8,1.01047397]
[1770491882366,1.06615811,2094.8,2093.9,1.01047397]
[1770491882732,2.25960091,2094.8,2094.0,1.19388729]
[1770491883235,2.25960091,2094.8,2094.0,2.20436126]
[1770491883435,1.19340402,2094.9,2094.1,1.01047397]
[1770491884318,1.06615811,2095.1,2094.1,1.01047397]
[1770491884319,2.25941506,2095.2,2094.1,1.01047397]
[1770491884963,2.25941506,2095.2,2094.4,0.03107]
[1770491886958,1.19325695,2095.2,2094.4,0.03107]
[1770491887123,1.05122002,2095.1,2093.9,1.19390753]
[1770491887722,1.05122002,2094.9,2093.9,1.19389994]
[1770491889075,1.19343135,2094.8,2093.9,1.04186189]
[1770491891786,1.19343135,2094.8,2094.0,1.19388729]
[1770491891987,1.09000343,2094.7,2093.4,0.99440317]
[1770491892141,1.09000343,2094.7,2093.6,1.19408836]
[1770491892651,1.09000343,2094.7,2093.7,1.1940553]
[1770491892883,1.09000343,2094.7,2093.8,1.19399127]
[1770491893170,1.09000343,2094.7,2093.6,2.18847415]
[1770491893568,1.09000343,2094.7,2093.6,2.18851232]
[1770491893774,1.09000343,2094.5,2093.5,7.70566444]
[1770491894445,1.09000343,2094.5,2093.5,6.51152375]
[1770491895974,1.09000343,2094.3,2093.5,6.51152375]
[1770491896149,1.19365928,2094.4,2093.6,1.02547317]
[1770491897269,1.19365928,2094.4,2093.6,0.99440317]
[1770491897477,1.09000343,2094.3,2093.5,7.70568918]
[1770491898071,1.19377327,2094.2,2093.5,7.70568918]
[1770491898276,1.19377327,2094.2,2093.5,6.51152375]
[1770491899979,1.19377327,2094.2,2093.8,0.001]
[1770491900865,4.77462104,2094.5,2093.8,0.001]
[1770491901069,5.86462447,2094.5,2093.8,0.001]
[1770491902678,1.09000343,2094.7,2093.8,0.001]
[1770491902855,1.09000343,2094.8,2093.8,0.99540317]
[1770491904973,1.19348832,2094.7,2094.0,0.99440317]
[1770491906781,1.09000343,2094.6,2093.8,0.001]
[1770491906954,1.09000343,2094.4,2093.8,0.001]
[1770491909284,1.19371627,2094.3,2093.8,0.001]
[1770491910891,2.2837197,2094.3,2093.8,0.001]
[1770491911875,1.19371627,2094.3,2093.8,0.001]
[1770491912082,1.09000343,2094.2,2093.8,0.001]
[1770491913367,2.28383371,2094.1,2093.8,0.001]
[1770491913589,1.09000343,2094.0,2093.8,0.001]
[1770491914168,1.09000343,2094.0,2093.5,0.001]
[1770491914380,1.09000343,2094.0,2093.0,0.001]
[1770491915476,1.086398,2093.8,2093.0,0.001]
[1770491917704,1.086398,2093.6,2093.0,0.001]
[1770491919803,1.086398,2093.4,2093.0,0.001]
[1770491919973,2.28057043,2093.5,2093.0,0.001]
[1770491920570,1.086398,2093.4,2093.0,0.001]
[1770491921883,1.19428653,2093.3,2093.0,0.001]
[1770491926298,1.086398,2093.3,2093.0,0.001]
[1770491926503,1.086398,2093.3,2093.2,0.001]
[1770491927697,1.086398,2093.5,2093.2,0.001]
[1770491928126,1.086398,2093.3,2093.0,0.001]
[1770491928404,1.086398,2093.3,2092.2,1.1136038]
[1770491928405,1.086398,2093.3,2092.2,0.001]
[1770491929695,1.086398,2093.1,2092.2,0.001]
[1770491930096,1.086398,2092.9,2092.2,0.001]
[1770491932379,1.19457186,2092.8,2092.2,0.001]
[1770491932574,2.28096986,2092.8,2092.2,0.001]
[1770491932787,1.19440064,2093.1,2092.2,1.1136038]
[1770491932992,1.194387,2093.2,2092.2,1.1136038]
[1770491933798,4.77668975,2093.7,2092.4,1.1126038]
[1770491934007,5.86308775,2093.7,2092.4,1.1126038]
[1770491934201,4.77668975,2093.7,2092.4,1.1126038]
[1770491934383,0.002,2093.8,2092.6,1.1126038]
[1770491935094,1.088398,2093.8,2092.6,1.1126038]
[1770491936205,0.002,2093.8,2092.6,1.1126038]
[1770491936713,0.002,2093.8,2092.8,1.1126038]
[1770491938691,0.002,2093.8,2093.0,1.1126038]
[1770491938890,0.002,2093.8,2093.0,1.1436738]
[1770491939419,0.002,2094.0,2093.4,1.1126038]
[1770491940223,0.002,2093.6,2093.4,1.1126038]
[1770491940393,0.002,2094.0,2093.4,1.1126038]
[1770491940801,0.002,2094.0,2093.6,1.1126038]
[1770491942135,0.002,2094.4,2093.7,1.1126038]
[1770491942716,1.088398,2094.4,2093.3,1.19424489]
[1770491942900,1.088398,2094.4,2093.2,1.19429534]
[1770491943107,1.086398,2094.2,2093.1,1.1943618]
[1770491943406,1.086398,2094.2,2093.2,1.19434236]
[1770491943819,1.086398,2094.2,2093.1,1.1943656]
[1770491944104,1.086398,2094.2,2093.1,1.19439008]
[1770491944808,1.086398,2094.0,2093.1,1.19439008]
[1770491945118,1.086398,2094.0,2093.0,1.1126038]
[1770491945119,1.086398,2094.0,2093.0,2.30702141]
[1770491946943,1.19394431,2093.9,2093.1,1.03409589]
[1770491947429,1.19383028,2094.1,2093.1,1.03409589]
[1770491947811,2.26141931,2094.1,2093.1,1.03409589]
[1770491949812,1.06758903,2094.0,2093.2,1.19434358]
[1770491950450,1.06758903,2094.0,2093.1,2.22845478]
[1770491950816,1.06758903,2094.3,2093.2,1.03409589]
[1770491951942,2.29517791,2094.2,2093.3,1.11703986]
[1770491952139,1.10140464,2094.1,2093.3,1.11703986]
[1770491952532,0.002,2093.9,2093.3,1.11703986]
[1770491954844,0.002,2093.9,2093.2,1.11803986]
[1770491955046,1.19557061,2094.6,2093.9,1.11703986]
[1770491955226,1.19588729,2094.4,2093.9,1.11703986]
[1770491955828,1.19588729,2094.4,2093.4,1.11703986]
[1770491956431,0.002,2094.6,2093.6,1.11703986]
[1770491956637,1.19788729,2094.6,2093.6,1.11703986]
[1770491956838,1.19788729,2094.6,2093.8,1.11703986]
[1770491958752,0.002,2095.0,2094.7,1.11703986]
[1770491958920,1.53100687,2096.3,2095.0,1.11703986]
[1770491959251,2.73289416,2096.3,2095.0,1.11703986]
[1770491960220,1.54031677,2096.3,2095.0,1.11703986]
[1770491961026,2.73292647,2096.3,2095.1,1.19326046]
[1770491961226,2.73292364,2096.3,2095.2,1.11703986]
[1770491961447,2.73290548,2096.3,2095.2,1.11703986]
[1770491963224,2.73290548,2096.3,2095.3,1.19314656]
[1770491963447,2.73290548,2096.3,2095.3,2.31018642]
[1770491963631,1.10140464,2096.2,2095.3,1.19314656]
[1770491964033,2.73290548,2096.3,2095.2,4.77259021]
[1770491964034,2.30329193,2096.1,2095.2,1.19318393]
[1770491964232,1.10140464,2096.0,2094.9,1.19333693]
[1770491964453,1.13247464,2096.0,2094.9,1.19334563]
[1770491964653,1.20188729,2095.9,2095.0,2.31035223]
[1770491965457,1.19286191,2095.8,2095.1,1.11703986]
[1770491966054,1.20188729,2095.7,2095.1,1.11703986]
[1770491966763,1.10140464,2095.3,2094.4,1.19361877]
[1770491966940,1.10140464,2095.3,2094.3,1.19371572]
[1770491967257,1.20188729,2095.2,2094.4,1.19365765]
[1770491967456,2.39512585,2095.2,2094.4,1.11703986]
[1770491967933,1.20188729,2095.2,2094.4,1.11703986]
[1770491968133,4.77148076,2095.8,2094.4,1.11703986]
[1770491968760,1.19274809,2096.0,2094.4,1.11703986]
[1770491968957,1.20188729,2095.8,2094.4,1.11703986]
[1770491969461,1.19291883,2095.7,2094.6,1.11703986]
[1770491970462,1.20188729,2095.8,2094.6,1.11703986]
[1770491970652,1.20188729,2095.6,2094.8,1.11703986]
[1770491970967,1.20188729,2096.0,2094.8,1.11703986]
[1770491971553,1.192805,2095.9,2095.0,1.11703986]
[1770491971759,1.20188729,2095.8,2095.0,1.11703986]
[1770491972061,1.192805,2095.9,2095.0,1.11703986]
[1770491972062,2.29420964,2095.9,2095.0,1.11703986]
[1770491972255,1.20188729,2095.8,2095.0,1.11703986]
[1770491972764,1.10140464,2095.7,2094.7,1.19345724]
[1770491973150,1.20188729,2095.6,2094.7,1.19345724]
[1770491973968,1.19303268,2095.5,2094.5,1.19360229]
[1770491974444,1.19303268,2095.5,2094.6,1.11703986]
[1770491976647,1.19303268,2095.5,2094.8,0.001]
[1770491977773,1.20188729,2095.4,2094.8,0.001]
[1770491977930,2.3309246,2095.4,2094.8,0.001]
[1770491978560,1.19314656,2095.3,2094.8,0.001]
[1770491978960,1.20188729,2095.2,2094.8,0.001]
[1770491980340,1.20188729,2095.1,2094.8,0.001]
[1770491980573,2.32235473,2095.0,2094.5,0.001]
[1770491980757,1.12903731,2094.9,2094.5,0.001]
[1770491980940,2.39520471,2095.0,2094.5,0.001]
[1770491982070,1.20188729,2095.0,2094.5,0.001]
[1770491982650,1.20188729,2095.0,2094.5,1.19460229]
[1770491983170,1.20188729,2095.0,2094.5,0.001]
[1770491984347,2.3952192,2095.0,2094.5,0.001]
[1770491984572,2.3952192,2095.0,2093.9,1.06879163]
[1770491984765,2.3952192,2095.0,2094.0,1.19383555]
[1770491984766,1.19343135,2094.8,2094.0,1.19383555]
[1770491985139,1.20188729,2094.7,2094.0,1.19383555]
[1770491986175,0.62355128,2094.2,2093.7,0.001]
[1770491986349,0.62355128,2094.6,2093.7,0.001]
[1770491986548,0.03107,2094.5,2093.7,0.001]
[1770491986756,1.19365928,2094.4,2093.7,0.001]
[1770491986953,0.65462128,2094.2,2093.2,0.001]
[1770491987359,1.20188729,2094.1,2093.2,0.001]
[1770491988743,1.82738747,2094.1,2093.2,0.001]
[1770491989164,1.19388729,2094.0,2093.2,0.001]
[1770491989357,1.82036586,2094.0,2093.9,0.001]
[1770491989671,1.82036586,2094.0,2093.2,0.001]
[1770491989862,1.20188729,2093.9,2093.6,0.001]
[1770491991766,0.62833065,2093.7,2093.2,0.001]
[1770491992153,0.62833065,2093.7,2093.0,0.001]
[1770491992350,1.20188729,2093.6,2093.0,0.001]
[1770491992574,2.37806574,2093.5,2092.6,1.06879163]
[1770491995171,2.39611677,2093.4,2092.6,1.06879163]
[1770491995360,2.39611677,2093.4,2092.5,1.19474306]
[1770491995361,0.43601636,2093.3,2092.5,1.19474306]
[1770491995875,0.43601636,2093.3,2092.7,1.06879163]
[1770491996480,0.33846481,2093.7,2092.7,1.06879163]
[1770491996664,0.33846481,2093.7,2093.1,1.06879163]
[1770491997490,0.33846481,2093.7,2093.3,1.06879163]
[1770491998153,1.547343,2094.4,2093.4,1.06879163]
[1770491998354,0.33965346,2094.3,2093.4,1.06879163]
[1770491998781,1.20188729,2094.2,2093.4,1.06879163]
[1770491998954,0.3317322,2094.1,2093.4,1.06879163]
[1770491999360,0.3317322,2094.1,2093.6,1.06879163]
[1770491999858,1.53361949,2094.1,2093.6,1.06879163]
[1770492000063,0.3317322,2094.1,2093.6,1.06879163]
[1770492000790,1.17681623,2095.1,2093.5,1.19417243]
[1770492000791,0.33193311,2094.6,2093.7,1.06879163]
[1770492001156,0.33193311,2094.6,2093.8,1.06879163]
[1770492001378,0.33193311,2094.6,2093.9,1.19394431]
[1770492001600,0.7,2094.4,2093.9,1.19394431]
[1770492003174,0.702,2094.4,2093.9,1.19394431]
[1770492003379,0.702,2094.4,2093.8,4.77577725]
[1770492003594,1.89566562,2094.4,2093.7,2.26280754]
[1770492004497,0.702,2094.4,2093.7,2.26280754]
[1770492004875,1.89565945,2094.4,2093.7,2.26280754]
[1770492005079,1.89565945,2094.4,2093.7,1.19401591]
[1770492010186,0.702,2094.4,2093.7,2.2333278]
[1770492010383,0.702,2094.4,2093.8,1.03931189]
[1770492014185,0.702,2094.4,2093.9,2.25342768]
[1770492015210,1.10384892,2094.3,2093.6,1.19406506]
[1770492015412,1.10384892,2094.3,2093.9,0.001]
[1770492015606,1.8956659,2094.4,2093.9,0.001]
[1770492015800,0.002,2094.3,2093.9,0.001]
[1770492017540,1.10877749,2094.3,2093.3,1.19425635]
[1770492017690,1.10877749,2094.3,2093.2,0.001]
[1770492018018,1.10877749,2094.3,2093.2,1.19534191]
[1770492019898,1.10726057,2094.1,2093.2,0.001]
[1770492020193,1.13833057,2094.1,2093.2,0.001]
[1770492022121,1.10726057,2093.9,2093.2,0.001]
[1770492022704,2.30114786,2094.0,2093.2,0.001]
[1770492023021,1.19388729,2094.0,2093.3,1.05948337]
[1770492023720,1.19388729,2094.0,2093.2,0.001]
[1770492024122,5.88280975,2094.1,2093.2,0.001]
[1770492026306,1.10726057,2094.0,2093.2,0.001]
[1770492027124,4.77554918,2094.1,2093.2,1.06048337]
[1770492027334,1.19573727,2094.3,2093.2,1.06048337]
[1770492028104,0.002,2094.3,2093.2,1.06048337]
[1770492028309,1.10926057,2094.3,2093.4,1.05948337]
[1770492028636,1.10926057,2094.3,2093.3,1.05948337]
[1770492028836,0.002,2094.3,2093.3,1.05948337]
[1770492029530,0.002,2094.3,2093.4,1.06048337]
[1770492029710,0.002,2094.1,2093.4,1.06048337]
[1770492030213,0.002,2094.1,2093.4,0.001]
[1770492030416,0.002,2094.1,2093.4,1.19521682]
[1770492031007,1.10926057,2094.1,2093.4,0.001]
[1770492031636,1.10926057,2094.1,2093.4,1.19522444]
[1770492032134,0.002,2094.1,2093.4,1.19522444]
[1770492032639,0.002,2094.1,2093.4,0.001]
[1770492033544,0.002,2094.1,2093.4,1.06048337]
[1770492034639,0.002,2094.1,2093.5,1.19417243]
[1770492036044,0.002,2094.1,2093.4,1.19518472]
[1770492036955,0.002,2094.1,2093.5,1.12172075]
[1770492037659,0.002,2094.1,2093.4,1.19518472]
[1770492039846,1.1334677,2094.1,2093.4,0.001]
[1770492040084,0.002,2094.1,2093.4,0.001]
[1770492040571,1.13374354,2094.1,2093.4,0.001]
[1770492041129,1.19388729,2094.0,2093.4,0.001]
[1770492041936,2.32587064,2094.0,2093.4,0.001]
[1770492042337,2.32587064,2094.0,2093.6,0.001]
[1770492042549,0.002,2093.9,2093.6,0.001]
[1770492047254,1.13535641,2093.9,2093.6,0.001]
[1770492048276,1.13535641,2093.9,2093.4,0.001]
[1770492049377,1.19400133,2093.8,2093.4,0.001]
[1770492049581,2.3277977,2093.8,2093.4,0.001]
[1770492050099,1.13401433,2093.7,2093.2,0.001]
[1770492051560,0.03107,2093.5,2093.2,0.001]
[1770492051753,1.13422889,2093.5,2093.2,0.001]
[1770492052080,1.13422889,2093.5,2093.1,0.001]
[1770492052780,1.16529889,2093.5,2093.1,0.001]
[1770492052952,1.13422889,2093.5,2093.1,0.001]
[1770492053551,1.16529889,2093.5,2093.1,0.001]
[1770492053750,2.32888749,2093.4,2093.1,0.001]
[1770492053961,1.13465801,2093.3,2092.4,0.001]
[1770492054371,1.13487035,2092.8,2092.1,0.001]
[1770492054678,1.13487035,2093.1,2092.1,1.19593268]
[1770492054981,1.13487035,2093.1,2092.2,1.12272075]
[1770492055646,1.19445771,2093.0,2092.7,0.001]
[1770492055879,1.19428653,2093.3,2092.7,1.12272075]
[1770492056172,1.19428653,2093.3,2092.7,0.001]
[1770492057285,2.32978053,2093.3,2092.7,0.001]
[1770492057646,1.135494,2093.2,2092.7,0.001]
[1770492057866,1.166564,2093.2,2092.7,0.001]
[1770492059972,1.16696611,2092.9,2092.5,0.001]
[1770492060961,1.16696611,2092.9,2092.2,0.001]
[1770492062084,2.33086673,2092.8,2092.1,0.001]
[1770492062395,1.13649375,2092.7,2092.1,0.001]
[1770492062558,0.03107,2092.6,2092.1,0.001]
[1770492063357,0.7,2092.4,2092.1,0.001]
[1770492067287,0.7,2092.4,2091.9,0.001]
[1770492067288,1.1193153,2092.3,2091.9,0.001]
[1770492067463,1.1193153,2092.3,2091.4,4.01139249]
[1770492067464,1.1503853,2092.3,2091.4,4.01139249]
[1770492067661,1.1503853,2092.3,2091.4,1.20526921]
[1770492067892,1.89482956,2092.4,2091.5,1.15730823]
[1770492068257,1.92589956,2092.4,2092.3,0.001]
[1770492068586,1.1193153,2092.3,2092.0,0.001]
[1770492068789,1.89482956,2092.4,2092.0,0.001]
[1770492075080,0.7,2092.4,2092.0,1.05719612]
[1770492075287,0.7,2092.4,2092.1,1.05619612]
[1770492076516,0.03107,2093.4,2092.1,1.05619612]
[1770492076714,4.80831856,2093.3,2092.1,1.05619612]
[1770492077206,4.80831856,2093.3,2092.3,1.05619612]
[1770492080416,0.7,2093.2,2092.5,1.05619612]
[1770492081311,1.82259064,2093.2,2092.4,1.19480022]
[1770492082130,1.82259064,2093.2,2092.0,1.19600407]
[1770492082131,1.15366064,2093.0,2092.0,1.19600407]
[1770492082287,1.19468603,2092.6,2092.0,0.001]
[1770492082487,1.19468603,2092.6,2092.0,1.05719612]
[1770492083020,1.89468603,2092.6,2092.0,1.05719612]
[1770492084320,1.89468603,2092.6,2092.0,2.25219832]
[1770492085512,1.89468603,2092.6,2092.0,1.05719612]
[1770492085714,1.89468603,2092.6,2092.0,0.001]
[1770492088726,0.5,2092.4,2092.0,0.001]
[1770492091025,0.5,2092.4,2092.0,1.05719612]
[1770492091213,4.77742539,2093.2,2092.3,1.05619612]
[1770492091395,6.60001603,2093.2,2092.3,1.05619612]
[1770492091798,5.90001603,2093.2,2092.3,1.05619612]
[1770492092507,0.7,2093.1,2092.3,1.05619612]
[1770492093409,1.89441525,2093.1,2092.5,0.001]
[1770492093607,1.89641525,2093.1,2092.5,0.001]
[1770492095905,0.702,2093.1,2092.5,1.12947689]
[1770492098054,0.002,2093.3,2092.7,1.12847689]
[1770492098328,0.702,2093.3,2092.7,1.12847689]
[1770492098913,0.002,2093.3,2092.7,1.12847689]
[1770492100009,0.7,2093.2,2092.8,2.32304875]
[1770492100207,0.002,2093.3,2092.8,2.32304875]
[1770492100407,0.7,2093.2,2092.8,2.32304875]
[1770492101506,0.7,2093.2,2092.8,1.19457186]
[1770492102118,2.27183228,2093.2,2092.5,0.001]
[1770492102323,0.7,2093.1,2092.5,1.19568727]
[1770492103038,0.7,2093.1,2092.6,1.19468119]
[1770492104103,0.7,2093.1,2092.9,1.19451478]
[1770492104630,0.002,2093.3,2093.0,1.12847689]
[1770492104814,0.7,2093.2,2093.0,1.12847689]
[1770492105198,0.002,2093.3,2093.0,1.12847689]
[1770492106605,0.002,2093.3,2093.1,1.19440064]
[1770492107404,0.002,2093.3,2092.8,1.12847689]
[1770492107609,0.002,2093.3,2092.8,1.19456216]
[1770492108721,0.002,2093.3,2092.7,4.77849401]
[1770492108919,0.002,2093.3,2092.7,5.9069709]
[1770492109133,0.002,2093.3,2092.8,1.12847689]
[1770492109723,0.002,2093.3,2092.7,4.77849401]
[1770492111433,0.002,2093.3,2092.7,1.12847689]
[1770492114449,0.002,2093.3,2092.8,2.32304875]
[1770492116224,0.002,2093.3,2092.9,1.12847689]